bitfinex-derivatives/quotes_BNBF0:USTF0_20250115
["timestamp","ask_amount","ask_price","bid_price","bid_amount"]
[1736952137309,0.26319208,698.83,697.46,0.28675479]
[1736952137502,0.26319208,698.82,697.46,0.28675479]
[1736952137706,0.28620082,698.81,697.46,0.28675479]
[1736952140710,0.2631678,698.8,697.46,0.28675479]
[1736952140905,0.26315756,698.79,697.46,0.28675479]
[1736952141105,0.26315756,698.8,697.46,0.28675479]
[1736952141303,0.26315756,698.78,697.46,0.28675479]
[1736952141506,0.26315756,698.77,697.46,0.28675479]
[1736952141707,0.26314243,698.77,697.46,0.28675479]
[1736952141909,0.26314243,698.8,697.46,0.28675479]
[1736952143812,0.28620901,698.79,697.46,0.28675479]
[1736952144111,0.26314243,698.78,697.46,0.28675479]
[1736952144309,0.28621721,698.77,697.46,0.28675479]
[1736952144509,0.26314243,698.76,697.46,0.28675479]
[1736952144810,0.2862254,698.75,697.46,0.28675479]
[1736952145912,0.26318873,698.74,697.46,0.28675479]
[1736952146715,0.26321755,698.73,697.46,0.28675479]
[1736952147018,0.26321755,698.72,697.46,0.28675479]
[1736952147309,0.26321755,698.71,697.46,0.28675479]
[1736952147513,0.26321755,698.74,697.46,0.28675479]
[1736952147714,0.26321755,698.73,697.46,0.28675479]
[1736952147914,0.54945524,698.72,697.46,0.28675479]
[1736952148110,0.26321755,698.71,697.46,0.28675479]
[1736952149317,0.28623769,698.72,697.46,0.28675479]
[1736952149318,0.26318306,698.7,697.46,0.28675479]
[1736952149514,0.26318306,698.71,697.46,0.28675479]
[1736952149712,0.26318306,698.7,697.46,0.28675479]
[1736952149916,0.26318306,698.69,697.46,0.28675479]
[1736952150116,0.26318753,698.69,697.46,0.28675479]
[1736952150416,0.28623769,698.72,697.46,0.28675479]
[1736952156618,1.06447315,699.07,697.46,0.28675479]
[1736952157520,1.06447315,699.38,697.46,0.28675479]
[1736952157720,0.28597574,699.36,697.46,0.28675479]
[1736952158022,0.26303408,699.35,697.46,0.28675479]
[1736952158521,0.26303761,699.34,697.46,0.28675479]
[1736952158721,0.26303761,699.33,697.46,0.28675479]
[1736952158922,0.26303761,699.32,697.46,0.28675479]
[1736952159119,0.26303761,699.35,697.46,0.28675479]
[1736952159330,0.26303761,699.34,697.46,0.28675479]
[1736952159522,0.26303761,699.33,697.46,0.28675479]
[1736952159723,0.26303761,699.32,697.46,0.28675479]
[1736952160023,0.26303761,699.31,697.46,0.28675479]
[1736952160223,0.26303761,699.3,697.46,0.28675479]
[1736952160425,0.28597574,699.36,697.46,0.28675479]
[1736952160725,0.26302479,699.35,697.46,0.28675479]
[1736952163326,0.26298393,699.34,697.46,0.28675479]
[1736952163620,0.28597574,699.36,697.46,0.28675479]
[1736952166924,0.26299632,699.35,697.46,0.28675479]
[1736952167124,0.28597574,699.36,697.46,0.28675479]
[1736952167421,0.26299961,699.35,697.46,0.28675479]
[1736952168826,0.28597574,699.36,697.46,0.28675479]
[1736952169022,0.26299606,699.35,697.46,0.28675479]
[1736952173124,0.28597574,699.36,697.46,0.28675479]
[1736952174327,0.26301804,699.35,697.46,0.28675479]
[1736952174832,0.26304164,699.34,697.46,0.28675479]
[1736952175339,0.26304164,699.33,697.46,0.28675479]
[1736952175631,0.26304164,699.32,697.46,0.28675479]
[1736952175831,0.28597574,699.36,697.46,0.28675479]
[1736952175832,0.26304164,699.31,697.46,0.28675479]
[1736952176027,0.26304164,699.3,697.46,0.28675479]
[1736952176233,0.26304164,699.29,697.46,0.28675479]
[1736952176534,0.26304164,699.28,697.46,0.28675479]
[1736952176731,0.26303247,699.34,697.46,0.28675479]
[1736952176927,0.26303247,699.33,697.46,0.28675479]
[1736952177131,0.26303247,699.32,697.46,0.28675479]
[1736952177331,1.06447315,699.35,697.46,0.28675479]
[1736952177332,0.26303247,699.31,697.46,0.28675479]
[1736952177531,0.26303247,699.3,697.46,0.28675479]
[1736952177833,0.26303247,699.29,697.46,0.28675479]
[1736952178130,0.54904093,699.28,697.46,0.28675479]
[1736952178334,0.26303247,699.27,697.46,0.28675479]
[1736952179437,0.26303385,699.26,697.46,0.28675479]
[1736952179637,0.26303385,699.25,697.46,0.28675479]
[1736952179839,0.26303385,699.24,697.46,0.28675479]
[1736952180032,0.26303385,699.23,697.46,0.28675479]
[1736952180231,0.26303385,699.22,697.46,0.28675479]
[1736952180436,0.26303385,699.21,697.46,0.28675479]
[1736952180636,0.26303385,699.2,697.46,0.28675479]
[1736952180832,0.26303385,699.27,697.46,0.28675479]
[1736952181037,0.26303385,699.26,697.46,0.28675479]
[1736952181237,1.06447315,699.27,697.46,0.28675479]
[1736952181531,0.26307415,699.26,697.46,0.28675479]
[1736952182130,1.06447315,699.18,697.46,0.28675479]
[1736952182335,0.2630946,699.17,697.46,0.28675479]
[1736952183137,1.06447315,699.15,697.46,0.28675479]
[1736952183331,0.2630946,699.14,697.46,0.28675479]
[1736952183936,1.06447315,699.1,697.46,0.28675479]
[1736952184135,0.2630946,699.09,697.46,0.28675479]
[1736952184339,0.28609029,699.08,697.46,0.28675479]
[1736952184535,0.2630946,699.07,697.46,0.28675479]
[1736952185137,1.06447315,698.99,697.46,0.28675479]
[1736952185436,0.2630946,698.98,697.46,0.28675479]
[1736952186338,1.06447315,698.91,697.46,0.28675479]
[1736952186535,0.2630946,698.9,697.46,0.28675479]
[1736952186937,0.26311243,698.89,697.46,0.28675479]
[1736952187242,0.26311243,698.88,697.46,0.28675479]
[1736952187440,0.26311243,698.87,697.46,0.28675479]
[1736952187636,0.26311243,698.86,697.46,0.28675479]
[1736952187840,0.26311243,698.85,697.46,0.28675479]
[1736952188041,0.26311243,698.84,697.46,0.28675479]
[1736952188236,0.26311243,698.83,697.46,0.28675479]
[1736952188434,0.26311243,698.82,697.46,0.28675479]
[1736952188637,0.26311243,698.81,697.46,0.28675479]
[1736952188937,0.26311243,698.8,697.46,0.28675479]
[1736952189137,1.06447315,698.9,697.46,0.28675479]
[1736952189334,0.2630888,698.89,697.46,0.28675479]
[1736952190341,0.2630888,698.88,697.46,0.28675479]
[1736952190534,0.2630888,698.87,697.46,0.28675479]
[1736952191142,1.06447315,698.91,697.46,0.28675479]
[1736952191342,0.2630888,698.86,697.46,0.28675479]
[1736952191638,0.2630888,698.85,697.46,0.28675479]
[1736952191840,0.2630888,698.84,697.46,0.28675479]
[1736952192039,0.2630888,698.83,697.46,0.28675479]
[1736952192234,0.2630888,698.82,697.46,0.28675479]
[1736952192433,1.06447315,698.91,697.46,0.28675479]
[1736952192641,0.28609029,699.08,697.46,0.28675479]
[1736952192642,0.54926621,698.9,697.46,0.28675479]
[1736952192834,0.26310224,698.89,697.46,0.28675479]
[1736952195239,0.26310273,698.88,697.46,0.28675479]
[1736952195436,0.28617216,698.88,697.46,0.28675479]
[1736952195637,0.26310273,698.87,697.46,0.28675479]
[1736952196041,0.28618035,698.86,697.46,0.28675479]
[1736952196344,0.26310273,698.85,697.46,0.28675479]
[1736952196541,0.28618854,698.84,697.46,0.28675479]
[1736952196843,0.26310273,698.83,697.46,0.28675479]
[1736952197837,0.28618854,698.84,697.46,0.28675479]
[1736952198037,0.549316,698.82,697.46,0.28675479]
[1736952198244,0.28619673,698.82,697.46,0.28675479]
[1736952215855,0.28619673,698.82,697.58,1.06792002]
[1736952216952,1.35066988,698.82,697.46,0.28675479]
[1736952217859,1.06447315,698.81,697.46,0.28675479]
[1736952218752,1.06447315,698.8,697.46,0.28675479]
[1736952220063,1.06447315,698.75,697.46,0.28675479]
[1736952221156,1.06447315,698.74,697.46,0.28675479]
[1736952222157,1.06447315,698.71,697.46,0.28675479]
[1736952223062,1.06447315,698.74,697.46,0.28675479]
[1736952224967,1.06447315,698.75,697.46,0.28675479]
[1736952225861,1.06447315,698.8,697.46,0.28675479]
[1736952226966,0.28619673,698.82,697.46,0.28675479]
[1736952231162,0.28619673,698.82,697.47,2.51964786]
[1736952231468,0.28619673,698.82,697.48,2.51964786]
[1736952231767,0.28619673,698.82,697.49,2.51964786]
[1736952231967,0.28619673,698.82,697.47,2.78959598]
[1736952231968,0.28619673,698.82,697.51,0.28673424]
[1736952239771,1.06447315,699.26,697.51,0.28673424]
[1736952239969,0.54902301,699.25,697.52,5.3071417]
[1736952240163,0.26300228,699.24,697.53,2.51887039]
[1736952240469,0.26300228,699.24,697.54,2.51891493]
[1736952240670,1.06447315,699.23,697.55,2.51891493]
[1736952240870,0.26300228,699.22,697.56,2.51891493]
[1736952241170,0.26300473,699.21,697.57,2.51891493]
[1736952241370,0.26300473,699.22,697.54,1.06792002]
[1736952241571,1.06447315,699.19,697.6,1.06792002]
[1736952241769,0.26300473,699.18,697.6,1.06792002]
[1736952241971,1.06447315,699.19,697.6,1.06792002]
[1736952242675,0.28602073,699.25,697.51,0.28673424]
[1736952242867,0.28602073,699.25,697.52,1.6590215]
[1736952243070,0.28602073,699.25,697.51,0.28673424]
[1736952243571,0.28602073,699.25,697.52,1.65826555]
[1736952243772,0.28602073,699.25,697.53,0.85859583]
[1736952243967,0.28602073,699.25,697.54,1.65826555]
[1736952244172,0.28602073,699.25,697.55,0.85859583]
[1736952244370,0.28602073,699.25,697.56,1.65826555]
[1736952244571,0.28602073,699.25,697.57,0.85859583]
[1736952244772,0.28602073,699.25,697.58,1.65826555]
[1736952245068,0.28602073,699.25,697.6,1.06792002]
[1736952245767,0.28602073,699.25,697.53,1.06792002]
[1736952245971,0.28602073,699.25,697.54,2.51568731]
[1736952246165,0.28602073,699.25,697.55,1.65708178]
[1736952246366,0.28602073,699.25,697.61,2.78414874]
[1736952247472,0.28602073,699.25,697.63,0.28668491]
[1736952248065,0.28602073,699.25,697.64,1.65608605]
[1736952248869,0.28602073,699.25,697.63,0.28668491]
[1736952252269,0.28602073,699.25,697.64,1.65401153]
[1736952252472,0.28602073,699.25,697.65,2.77759172]
[1736952252671,0.28602073,699.25,697.66,1.65401153]
[1736952252873,0.28602073,699.25,697.65,2.77759172]
[1736952252874,0.28602073,699.25,697.68,0.28666437]
[1736952261880,0.28602073,699.25,697.69,2.51072094]
[1736952262074,0.28602073,699.25,697.71,0.28665204]
[1736952262381,0.28602073,699.25,697.72,2.51072094]
[1736952262579,0.28602073,699.25,697.73,2.51072094]
[1736952262780,0.28602073,699.25,697.74,1.65219042]
[1736952262979,0.28602073,699.25,697.75,1.65219042]
[1736952263181,0.28602073,699.25,697.8,1.0670032]
[1736952263880,0.28602073,699.25,697.81,0.28661096]
[1736952265182,0.2629277,699.24,697.82,1.0670032]
[1736952265381,0.28602073,699.25,697.83,0.28660275]
[1736952265581,0.26292761,699.24,697.83,0.28660275]
[1736952265782,0.28602073,699.25,697.83,0.28660275]
[1736952265978,0.26293416,699.24,697.83,0.28660275]
[1736952266577,0.28602073,699.25,697.83,0.28660275]
[1736952268083,1.06436699,699.31,697.83,0.28660275]
[1736952268484,1.06436699,699.34,697.83,0.28660275]
[1736952269578,1.06436699,700.02,697.91,1.0670032]
[1736952269780,0.54845083,700.01,698.01,0.28652884]
[1736952269984,0.26274063,700.0,698.01,0.28652884]
[1736952270182,0.28571836,699.99,698.01,0.28652884]
[1736952270385,0.26274063,699.98,698.01,0.28652884]
[1736952270583,0.28571836,699.99,698.01,0.28652884]
[1736952280497,0.26277064,699.98,698.01,0.28652884]
[1736952280693,0.28572653,699.97,698.01,0.28652884]
[1736952280895,0.26277064,699.96,698.01,0.28652884]
[1736952281092,0.28573469,699.95,698.01,0.28652884]
[1736952281291,0.26277064,699.94,698.01,0.28652884]
[1736952281498,0.28574286,699.93,698.01,0.28652884]
[1736952281698,0.26277064,699.92,698.01,0.28652884]
[1736952281995,0.54852166,699.91,698.01,0.28652884]
[1736952282198,0.28575919,699.89,698.01,0.28652884]
[1736952282498,0.2627983,699.88,698.01,0.28652884]
[1736952282694,0.54856565,699.87,698.01,0.28652884]
[1736952282894,0.2627983,699.86,698.01,0.28652884]
[1736952283094,0.2627983,699.85,698.01,0.28652884]
[1736952283392,0.2627983,699.84,698.01,0.28652884]
[1736952283591,0.2627983,699.83,698.01,0.28652884]
[1736952283792,0.2627983,699.82,698.01,0.28652884]
[1736952284000,0.54859015,699.81,698.01,0.28652884]
[1736952284301,0.54859424,699.8,698.01,0.28652884]
[1736952284499,0.2627983,699.79,698.01,0.28652884]
[1736952284801,0.54859832,699.79,698.01,0.28652884]
[1736952284999,0.2627983,699.78,698.01,0.28652884]
[1736952285194,0.28580819,699.77,698.01,0.28652884]
[1736952285394,0.2628092,699.76,698.01,0.28652884]
[1736952285594,0.28581636,699.75,698.01,0.28652884]
[1736952285794,0.2628092,699.74,698.01,0.28652884]
[1736952286600,0.28581636,699.75,698.01,0.28652884]
[1736952287395,0.26278929,699.74,698.01,0.28652884]
[1736952288095,0.26279711,699.73,698.01,0.28652884]
[1736952288295,0.26279711,699.72,698.01,0.28652884]
[1736952288499,0.28581636,699.75,698.01,0.28652884]
[1736952295906,1.06169416,699.74,698.01,0.28652884]
[1736952296106,0.28582453,699.73,698.01,0.28652884]
[1736952296899,1.06169416,699.7,698.01,0.28652884]
[1736952297106,0.28584087,699.69,698.01,0.28652884]
[1736952300616,0.26285672,699.68,698.01,0.28652884]
[1736952300820,0.28584904,699.67,698.01,0.28652884]
[1736952301014,0.26285672,699.66,698.01,0.28652884]
[1736952302215,0.28585721,699.65,698.01,0.28652884]
[1736952302416,0.26285672,699.64,698.01,0.28652884]
[1736952302618,0.28585721,699.65,698.01,0.28652884]
[1736952303719,0.26287691,699.64,698.01,0.28652884]
[1736952304416,0.26289341,699.63,698.01,0.28652884]
[1736952304717,0.26289341,699.62,698.01,0.28652884]
[1736952304918,0.28585721,699.65,698.01,0.28652884]
[1736952304919,0.26289341,699.61,698.01,0.28652884]
[1736952305113,0.28585721,699.65,698.01,0.28652884]
[1736952305316,0.26290741,699.64,698.01,0.28652884]
[1736952305711,0.26290741,699.63,698.01,0.28652884]
[1736952305916,0.26290741,699.62,698.01,0.28652884]
[1736952306117,1.06169416,699.42,698.01,0.28652884]
[1736952306313,0.26290741,699.41,698.01,0.28652884]
[1736952306617,0.26290741,699.4,698.01,0.28652884]
[1736952306810,1.06169416,699.64,698.01,0.28652884]
[1736952306811,1.06169416,699.31,698.01,0.28652884]
[1736952307012,0.26290741,699.3,698.01,0.28652884]
[1736952307214,0.26300396,699.3,698.01,0.28652884]
[1736952307815,0.26300396,699.29,698.01,0.28652884]
[1736952308114,1.06169416,699.33,698.01,0.28652884]
[1736952308613,1.06169416,699.62,698.01,0.28652884]
[1736952308820,0.26297753,699.61,698.01,0.28652884]
[1736952309915,0.2630176,699.6,698.01,0.28652884]
[1736952310110,0.2630176,699.59,698.01,0.28652884]
[1736952310313,0.2630176,699.58,698.01,0.28652884]
[1736952310513,0.2630176,699.61,698.01,0.28652884]
[1736952310716,1.06169416,699.52,698.01,0.28652884]
[1736952310931,0.2630176,699.51,698.01,0.28652884]
[1736952311619,0.2630176,699.5,698.01,0.28652884]
[1736952311920,0.2630176,699.49,698.01,0.28652884]
[1736952312115,0.2630176,699.48,698.01,0.28652884]
[1736952312314,0.2630176,699.47,698.01,0.28652884]
[1736952312515,1.06169416,699.56,698.01,0.28652884]
[1736952312717,1.06169416,699.3,698.01,0.28652884]
[1736952313018,0.26302648,699.29,698.01,0.28652884]
[1736952313219,0.26302648,699.28,698.01,0.28652884]
[1736952313519,0.26302648,699.27,698.01,0.28652884]
[1736952313714,0.26302648,699.26,698.01,0.28652884]
[1736952313919,0.26302648,699.25,698.01,0.28652884]
[1736952314118,1.06169416,699.31,698.01,0.28652884]
[1736952314119,0.26302648,699.24,698.01,0.28652884]
[1736952314313,0.26302648,699.23,698.01,0.28652884]
[1736952314517,1.06169416,699.5,698.01,0.28652884]
[1736952314518,0.26302648,699.22,698.01,0.28652884]
[1736952314718,0.26302648,699.21,698.01,0.28652884]
[1736952314920,0.26302648,699.2,698.01,0.28652884]
[1736952315121,0.26302648,699.19,698.01,0.28652884]
[1736952315323,0.26304581,699.18,698.01,0.28652884]
[1736952315515,0.72712455,699.8,698.01,0.28652884]
[1736952315516,0.26304581,699.17,698.01,0.28652884]
[1736952315718,0.26304581,699.16,698.01,0.28652884]
[1736952315917,0.26304581,699.15,698.01,0.28652884]
[1736952316120,0.26304581,699.14,698.01,0.28652884]
[1736952316421,0.26304581,699.13,698.01,0.28652884]
[1736952316614,0.26304581,699.12,698.01,0.28652884]
[1736952316813,0.26304581,699.11,698.01,0.28652884]
[1736952317121,1.06169416,699.33,698.01,0.28652884]
[1736952317122,0.26304581,699.1,698.01,0.28652884]
[1736952317421,1.27403299,699.76,698.01,0.28652884]
[1736952317422,0.26304581,699.09,698.01,0.28652884]
[1736952317622,0.26304581,699.08,698.01,0.28652884]
[1736952317817,0.26304581,699.33,698.01,0.28652884]
[1736952318016,0.26304159,699.32,698.01,0.28652884]
[1736952318221,1.27403299,699.78,698.01,0.28652884]
[1736952318222,0.26304159,699.31,698.01,0.28652884]
[1736952318523,0.26304159,699.3,698.01,0.28652884]
[1736952318716,0.26304159,699.29,698.01,0.28652884]
[1736952318922,0.26304159,699.28,698.01,0.28652884]
[1736952319122,1.06169416,699.42,698.01,0.28652884]
[1736952319123,0.26304159,699.27,698.01,0.28652884]
[1736952319420,1.06169416,699.42,698.01,0.28652884]
[1736952319421,0.26304159,699.26,698.01,0.28652884]
[1736952319621,0.26304159,699.25,698.01,0.28652884]
[1736952319822,0.26304159,699.24,698.01,0.28652884]
[1736952320022,0.26304159,699.23,698.01,0.28652884]
[1736952320226,1.27403299,699.91,698.01,0.28652884]
[1736952320227,0.26304159,699.22,698.01,0.28652884]
[1736952320519,1.06169416,699.38,698.01,0.28652884]
[1736952320824,0.2630346,699.37,698.01,0.28652884]
[1736952321025,0.2630346,699.36,698.01,0.28652884]
[1736952321223,0.2630346,699.35,698.01,0.28652884]
[1736952321425,0.26303933,699.34,698.01,0.28652884]
[1736952321625,0.26303933,699.33,698.01,0.28652884]
[1736952321925,0.26303933,699.32,698.01,0.28652884]
[1736952322122,0.26303933,699.31,698.01,0.28652884]
[1736952322322,0.26303933,699.3,698.01,0.28652884]
[1736952322520,0.26303933,699.29,698.01,0.28652884]
[1736952322820,0.26303933,699.28,698.01,0.28652884]
[1736952323024,1.27403299,699.89,698.01,0.28652884]
[1736952323025,0.26303933,699.27,698.01,0.28652884]
[1736952323227,0.26303933,699.26,698.01,0.28652884]
[1736952324719,0.26299553,699.6,698.01,0.28652884]
[1736952324926,0.26299553,699.59,698.01,0.28652884]
[1736952325126,0.26299553,699.58,698.01,0.28652884]
[1736952325326,0.26299553,699.57,698.01,0.28652884]
[1736952325527,0.26299553,699.64,698.01,0.28652884]
[1736952325727,1.0588341,699.49,698.01,0.28652884]
[1736952325930,0.26299553,699.48,698.01,0.28652884]
[1736952326127,0.26299451,699.47,698.01,0.28652884]
[1736952326327,0.26299451,699.48,698.01,0.28652884]
[1736952326528,1.0588341,699.49,698.01,0.28652884]
[1736952326529,0.26299451,699.47,698.01,0.28652884]
[1736952326829,0.26299451,699.46,698.01,0.28652884]
[1736952327129,0.26299451,699.56,698.01,0.28652884]
[1736952327323,0.26299451,699.55,698.01,0.28652884]
[1736952327627,0.26299451,699.54,698.01,0.28652884]
[1736952327828,0.26299451,699.53,698.01,0.28652884]
[1736952328023,0.26299451,699.52,698.01,0.28652884]
[1736952328226,0.26299451,699.51,698.01,0.28652884]
[1736952328422,0.26299451,699.5,698.01,0.28652884]
[1736952328622,0.26299451,699.49,698.01,0.28652884]
[1736952328823,0.26298255,699.48,698.01,0.28652884]
[1736952329023,0.26298255,699.47,698.01,0.28652884]
[1736952329223,0.26298255,699.46,698.01,0.28652884]
[1736952329427,0.26298255,699.45,698.01,0.28652884]
[1736952329725,0.26298198,699.44,698.01,0.28652884]
[1736952329923,0.26298198,699.53,698.01,0.28652884]
[1736952330229,0.26298198,699.52,698.01,0.28652884]
[1736952330529,0.26298198,699.51,698.01,0.28652884]
[1736952330731,0.26298198,699.52,698.01,0.28652884]
[1736952330925,0.26298198,699.5,698.01,0.28652884]
[1736952331125,0.26298198,699.49,698.01,0.28652884]
[1736952331325,0.26298198,699.52,698.01,0.28652884]
[1736952331522,1.0588341,699.47,698.01,0.28652884]
[1736952331722,0.26299606,699.46,698.01,0.28652884]
[1736952332530,1.0588341,699.41,698.01,0.28652884]
[1736952332825,0.54895545,699.4,698.01,0.28652884]
[1736952333028,0.26299606,699.39,698.01,0.28652884]
[1736952333430,0.26299606,699.38,698.01,0.28652884]
[1736952333629,0.26299606,699.37,698.01,0.28652884]
[1736952333831,1.34479349,699.4,698.01,0.28652884]
[1736952333832,0.26299606,699.36,698.01,0.28652884]
[1736952334032,0.26299606,699.35,698.01,0.28652884]
[1736952334233,1.34479349,699.4,698.01,0.28652884]
[1736952334234,1.0588341,699.17,698.01,0.28652884]
[1736952334432,0.26300908,699.16,698.01,0.28652884]
[1736952335433,1.0588341,699.23,698.01,0.28652884]
[1736952335434,0.26300908,699.15,698.01,0.28652884]
[1736952335634,1.0588341,699.23,698.01,0.28652884]
[1736952335635,0.26300908,699.14,698.01,0.28652884]
[1736952335838,0.26300908,699.13,698.01,0.28652884]
[1736952336038,0.26300142,699.12,698.01,0.28652884]
[1736952336237,1.0588341,699.21,698.01,0.28652884]
[1736952336238,0.26300142,699.2,698.01,0.28652884]
[1736952336435,1.0588341,699.21,698.01,0.28652884]
[1736952336436,0.26300142,699.19,698.01,0.28652884]
[1736952336743,1.0588341,699.17,698.01,0.28652884]
[1736952336934,0.26300142,699.16,698.01,0.28652884]
[1736952337433,1.0588341,699.13,698.01,0.28652884]
[1736952337833,0.26300451,699.12,698.01,0.28652884]
[1736952338438,1.0588341,699.13,698.01,0.28652884]
[1736952338739,1.0588341,699.09,698.01,0.28652884]
[1736952339537,1.0588341,699.06,698.01,0.28652884]
[1736952340434,1.0588341,699.05,698.01,0.28652884]
[1736952341442,1.0588341,699.06,698.01,0.28652884]
[1736952343243,1.0588341,699.01,698.01,0.28652884]
[1736952344541,1.0588341,699.03,698.01,0.28652884]
[1736952345442,1.0588341,699.05,698.01,0.28652884]
[1736952346443,1.0588341,699.07,698.01,0.28652884]
[1736952347541,1.0588341,699.23,698.01,0.28652884]
[1736952348744,1.0588341,699.3,698.01,0.28652884]
[1736952349947,1.0588341,699.36,698.01,0.28652884]
[1736952350844,0.28595939,699.4,698.01,0.28652884]
[1736952351244,0.26288956,699.39,698.01,0.28652884]
[1736952353540,0.28595939,699.4,698.01,0.28652884]
[1736952353847,1.0588341,699.38,698.01,0.28652884]
[1736952354045,0.54893227,699.37,698.01,0.28652884]
[1736952354245,0.54893635,699.36,698.01,0.28652884]
[1736952354446,0.26296061,699.35,698.01,0.28652884]
[1736952354644,1.0588341,699.32,698.01,0.28652884]
[1736952354849,0.26296061,699.31,698.01,0.28652884]
[1736952355948,0.54896089,699.3,698.01,0.28652884]
[1736952356250,0.54896498,699.29,698.01,0.28652884]
[1736952356544,0.26296061,699.28,698.01,0.28652884]
[1736952356744,0.28600437,699.29,698.01,0.28652884]
[1736952357345,0.26296027,699.28,698.01,0.28652884]
[1736952357545,0.28600437,699.29,698.01,0.28652884]
[1736952361647,0.26295339,699.28,698.01,0.28652884]
[1736952361950,0.28600437,699.29,698.01,0.28652884]
[1736952363652,1.0588341,699.42,697.69,1.06259516]
[1736952363948,0.26293936,699.41,697.69,1.06259516]
[1736952364254,0.26293936,699.41,697.71,1.06259516]
[1736952364551,0.26293936,699.4,697.72,5.30189582]
[1736952364751,1.0588341,699.44,697.72,5.30189582]
[1736952364752,0.26293936,699.39,697.73,2.51655365]
[1736952364950,0.26293936,699.39,697.72,2.78534217]
[1736952364951,1.0588341,699.35,697.81,1.06259516]
[1736952365146,0.26293936,699.34,697.82,1.65798356]
[1736952365751,0.26293936,699.34,697.83,2.78534217]
[1736952365955,0.26293936,699.33,697.84,1.65798356]
[1736952366150,0.26293936,699.32,697.84,1.65798356]
[1736952366350,1.0588341,699.36,697.83,2.78534217]
[1736952366852,1.0588341,699.38,697.83,3.84793733]
[1736952367050,1.0588341,699.38,697.84,2.51622289]
[1736952367251,1.0588341,699.38,697.85,2.51622289]
[1736952367447,1.0588341,699.38,697.86,2.51622289]
[1736952367652,1.0588341,699.38,697.85,2.7842351]
[1736952367653,1.0588341,699.38,697.87,2.51622289]
[1736952367852,1.0588341,699.54,697.89,1.06259516]
[1736952368054,0.26288503,699.53,697.9,1.65780973]
[1736952369053,0.26288503,699.53,697.89,1.06259516]
[1736952369256,0.26291126,699.52,697.89,1.06259516]
[1736952369552,0.26291126,699.51,697.88,1.06259516]
[1736952369754,0.26291126,699.54,697.89,1.6571296]
[1736952370053,0.26291126,699.53,697.88,1.06259516]
[1736952370349,1.0588341,699.45,697.87,1.06259516]
[1736952370550,0.26291126,699.44,697.87,1.06259516]
[1736952371153,0.26291126,699.44,697.81,1.06259516]
[1736952371356,0.26291126,699.51,697.81,1.06259516]
[1736952371654,0.26291126,699.5,697.81,1.06259516]
[1736952371855,0.26291126,699.49,697.82,1.65672682]
[1736952372156,1.0588341,699.83,697.82,1.06259516]
[1736952372157,0.26289584,699.48,697.82,1.06259516]
[1736952372356,0.26289584,699.47,697.83,1.65654066]
[1736952372557,1.0588341,699.53,697.83,1.65654066]
[1736952372758,0.26287564,699.52,697.84,2.78253231]
[1736952372957,0.26287564,699.52,697.85,1.65654066]
[1736952373157,0.26287564,699.52,697.88,1.06259516]
[1736952373353,0.26287564,699.51,697.88,1.06259516]
[1736952373553,0.26287564,699.5,697.88,1.06259516]
[1736952373756,0.26287564,699.49,697.88,1.06259516]
[1736952373952,0.26287564,699.58,697.88,1.06259516]
[1736952374157,1.32170974,699.57,697.87,1.06259516]
[1736952374353,0.26287564,699.56,697.87,1.06259516]
[1736952374755,0.26287811,699.55,697.87,1.06259516]
[1736952375154,0.26287936,699.54,697.88,1.06259516]
[1736952375857,0.26287936,699.54,697.89,1.65641313]
[1736952376058,1.32171346,699.54,697.88,1.06259516]
[1736952376359,0.26287936,699.53,697.89,1.65655303]
[1736952376559,0.26287936,699.53,697.89,4.43910037]
[1736952376856,0.26287936,699.53,697.92,1.06259516]
[1736952376857,1.0588341,699.41,697.92,1.06259516]
[1736952377154,0.26287936,699.4,697.92,1.06259516]
[1736952377354,1.0588341,699.41,697.92,1.06259516]
[1736952377560,0.26293714,699.4,697.92,1.06259516]
[1736952377962,1.0588341,699.36,697.86,1.06259516]
[1736952378360,0.26295591,699.35,697.86,1.06259516]
[1736952378762,1.0588341,699.27,697.8,1.06259516]
[1736952378965,0.26295591,699.26,697.8,1.06259516]
[1736952379663,1.0588341,699.25,697.82,1.06259516]
[1736952380661,1.0588341,699.29,697.78,1.06259516]
[1736952381661,1.0588341,699.29,697.79,2.78431206]
[1736952381862,1.0588341,699.3,697.86,1.06259516]
[1736952383062,1.0588341,699.46,697.95,1.06259516]
[1736952384161,2.1617863,700.25,693.56,4.74489448]
[1736952384162,1.0588341,699.49,697.97,1.06259516]
[1736952385262,1.0588341,699.53,697.88,1.06259516]
[1736952385561,0.26286391,699.52,697.88,1.06259516]
[1736952385761,0.2628881,699.51,697.88,1.06259516]
[1736952385958,1.0588341,699.53,697.88,1.06259516]
[1736952386557,2.32532732,700.43,697.9,1.06259516]
[1736952386558,1.0588341,699.47,697.9,1.06259516]
[1736952387457,1.0588341,699.54,697.68,1.06259516]
[1736952388364,1.0588341,699.54,697.67,1.06259516]
[1736952389268,1.0588341,699.58,697.7,1.06259516]
[1736952390361,1.0588341,699.57,697.7,1.06259516]
[1736952390867,0.26290016,699.56,697.71,2.51527714]
[1736952391067,0.26290016,699.56,697.72,2.51527714]
[1736952391262,1.0588341,699.57,697.73,2.51527714]
[1736952391462,0.52578578,699.55,697.74,2.51527714]
[1736952391667,1.0588341,699.41,697.93,1.06259516]
[1736952392765,1.0588341,699.45,698.01,1.06259516]